bitfinex-derivatives/quotes_SOLF0:USTF0_20260121
["timestamp","ask_amount","ask_price","bid_price","bid_amount"]
[1769035496855,6.8876,130.78,130.72,5.10196931]
[1769035498966,9.38656342,130.78,130.72,5.10196931]
[1769035500561,2.49896342,130.76,130.7,4.73077303]
[1769035501763,2.49896342,130.76,130.66,4.68011524]
[1769035502856,6.8898,130.74,130.66,6.8939]
[1769035503063,6.8898,130.74,130.67,4.68011524]
[1769035507274,6.8902,130.73,130.67,4.68011524]
[1769035508473,9.38806342,130.76,130.67,4.68011524]
[1769035511274,9.38806342,130.76,130.68,4.68011524]
[1769035513369,9.38806342,130.76,130.69,4.68011524]
[1769035514879,2.49896342,130.76,130.69,4.68011524]
[1769035515272,2.49896342,130.76,130.7,11.57181524]
[1769035516277,2.49896342,130.76,130.7,4.68011524]
[1769035518079,2.49896342,130.78,130.7,4.68011524]
[1769035518474,2.49896342,130.8,130.7,4.68011524]
[1769035518671,2.49896342,130.82,130.75,4.68011524]
[1769035519876,9.38446342,130.82,130.75,4.68011524]
[1769035521179,2.49896342,130.82,130.75,4.68011524]
[1769035521585,2.49896342,130.8,130.73,4.68011524]
[1769035522381,2.49896342,130.8,130.74,4.68011524]
[1769035523983,9.38506342,130.81,130.74,4.68011524]
[1769035524386,2.49896342,130.81,130.75,4.68011524]
[1769035526986,6.8856,130.82,130.75,4.68011524]
[1769035527187,2.49896342,130.83,130.76,4.68011524]
[1769035527777,300.95215815,130.85,130.76,11.56861524]
[1769035527991,300.95215815,130.85,130.77,4.68011524]
[1769035528389,300.95215815,130.85,130.79,4.68011524]
[1769035529197,2.49896342,130.85,130.79,11.56701524]
[1769035529399,2.49896342,130.87,130.8,4.68011524]
[1769035530301,9.38196342,130.87,130.8,4.68011524]
[1769035532998,9.38196342,130.87,130.81,4.48719952]
[1769035533199,2.49896342,130.87,130.81,4.48719952]
[1769035533600,2.49896342,130.89,130.82,4.48719952]
[1769035534290,3.43089697,130.89,130.82,4.48719952]
[1769035537205,3.43089697,130.89,130.83,4.48719952]
[1769035539203,3.43089697,130.89,130.84,4.48719952]
[1769035540800,2.49896342,130.89,130.84,4.48719952]
[1769035540998,2.49896342,130.89,130.84,11.37159952]
[1769035542302,2.49896342,130.89,130.85,6.8837]
[1769035542906,3.29198223,130.91,130.85,6.8837]
[1769035544314,3.29198223,130.91,130.86,6.8832]
[1769035546308,3.29198223,130.91,130.85,4.48719952]
[1769035547815,3.29198223,130.91,130.86,4.48719952]
[1769035547816,2.49896342,130.91,130.86,4.48719952]
[1769035549004,3.12112456,130.93,130.87,4.48719952]
[1769035551429,10.00082456,130.93,130.87,4.48719952]
[1769035555423,0.48508005,130.92,130.87,4.48719952]
[1769035556027,7.36548005,130.92,130.87,4.48719952]
[1769035556326,0.46638636,130.91,130.85,4.48719952]
[1769035557833,0.46638636,130.91,130.85,11.37089952]
[1769035559328,0.46638636,130.91,130.86,11.37039952]
[1769035560225,0.46638636,130.91,130.86,6.8832]
[1769035562332,0.46638636,130.91,130.85,10.84168212]
[1769035563221,7.34718636,130.91,130.85,3.95778212]
[1769035566835,0.24054637,130.89,130.83,4.09170529]
[1769035567029,6.8814,130.9,130.83,4.09170529]
[1769035568533,3.9884038,130.93,130.86,4.09170529]
[1769035569337,6.8812,130.91,130.86,4.09170529]
[1769035571932,10.8687038,130.92,130.86,4.09170529]
[1769035577345,3.9884038,130.91,130.86,4.09170529]
[1769035580336,10.8692038,130.91,130.86,4.09170529]
[1769035603952,3.9884038,130.91,130.86,4.09170529]
[1769035609161,3.9884038,130.91,130.85,6.8839]
[1769035609356,3.76290983,130.89,130.8,3.78810844]
[1769035609651,3.76290983,130.88,130.8,3.78810844]
[1769035610050,3.76290983,130.87,130.8,3.78810844]
[1769035614267,3.76290983,130.86,130.8,3.78810844]
[1769035615153,3.76290983,130.86,130.75,107.1593]
[1769035615154,3.76290983,130.81,130.72,3.78810844]
[1769035615353,3.76290983,130.81,130.73,3.78810844]
[1769035616762,3.76290983,130.81,130.74,3.78810844]
[1769035617469,3.75509806,130.79,130.71,3.78810844]
[1769035618858,6.8877,130.78,130.71,3.78810844]
[1769035619259,3.75509806,130.79,130.71,3.78810844]
[1769035620971,6.25345316,130.79,130.71,3.78810844]
[1769035622772,3.69942071,130.78,130.71,3.78810844]
[1769035624771,2.4983551,130.81,130.72,3.7196358]
[1769035624971,6.17363642,130.81,130.72,3.7196358]
[1769035625161,3.67528132,130.8,130.72,3.7196358]
[1769035626367,3.67528132,130.8,130.73,10.6098358]
[1769035627172,3.67528132,130.8,130.74,3.7196358]
[1769035628475,6.17363642,130.8,130.74,3.7196358]
[1769035629069,6.17363642,130.8,130.74,10.6091358]
[1769035631774,3.62210555,130.82,130.76,3.7196358]
[1769035631974,486.3776,130.89,130.76,3.7196358]
[1769035631975,3.62210555,130.84,130.76,3.7196358]
[1769035632168,3.62210555,130.86,130.77,3.7196358]
[1769035632371,3.62210555,130.86,130.81,3.7196358]
[1769035632581,2.4983551,130.87,130.81,3.7196358]
[1769035632972,2.4983551,130.87,130.82,3.7196358]
[1769035633479,6.11320909,130.87,130.82,3.7196358]
[1769035639275,3.57306067,130.86,130.8,3.7196358]
[1769035639471,107.0476,130.9,130.78,3.7196358]
[1769035639472,6.07141577,130.85,130.78,3.7196358]
[1769035639784,10.45756067,130.84,130.78,3.7196358]
[1769035639978,3.56637244,130.83,130.76,3.7196358]
[1769035640280,3.56637244,130.82,130.76,3.7196358]
[1769035640482,3.56637244,130.82,130.74,3.7196358]
[1769035640881,6.05811614,130.81,130.74,3.7196358]
[1769035641982,6.05811614,130.81,130.74,10.6092358]
[1769035644479,3.54037897,130.8,130.74,10.6092358]
[1769035645378,3.54037897,130.8,130.74,3.7196358]
[1769035645970,107.0949,130.84,130.72,3.7196358]
[1769035645971,6.02618089,130.79,130.72,3.7196358]
[1769035646574,3.52782579,130.78,130.72,3.7196358]
[1769035646876,10.41542579,130.78,130.72,3.7196358]
[1769035649278,3.52782579,130.78,130.72,3.7196358]
[1769035650676,3.52782579,130.78,130.7,10.6110358]
[1769035650875,3.52782579,130.78,130.71,3.7196358]
[1769035653291,2.4983551,130.77,130.71,3.7196358]
[1769035653477,5.86889463,130.77,130.71,3.7196358]
[1769035656995,12.75709463,130.77,130.71,3.7196358]
[1769035658100,3.37053953,130.76,130.71,3.7196358]
[1769035659097,3.37053953,130.76,130.69,6.8923]
[1769035659098,3.37053953,130.76,130.69,10.28411846]
[1769035659297,3.37053953,130.76,130.69,3.39181846]
[1769035660084,3.37053953,130.76,130.69,10.28411846]
[1769035660282,3.37053953,130.75,130.69,3.39181846]
[1769035660491,5.86889463,130.73,130.67,3.39181846]
[1769035660794,3.37053953,130.72,130.67,3.39181846]
[1769035660994,3.37053953,130.72,130.65,3.39181846]
[1769035661384,10.26133953,130.72,130.65,3.39181846]
[1769035661585,3.37053953,130.71,130.65,3.39181846]
[1769035661895,5.86889463,130.71,130.65,3.39181846]
[1769035663094,3.37053953,130.72,130.65,3.39181846]
[1769035663498,12.75809463,130.75,130.66,3.39181846]
[1769035664101,5.86889463,130.75,130.69,3.39181846]
[1769035664396,3.37053953,130.75,130.69,3.39181846]
[1769035666002,3.37053953,130.75,130.69,10.28411846]
[1769035672791,3.37053953,130.75,130.7,3.39181846]
[1769035673299,3.37053953,130.72,130.66,3.39181846]
[1769035673497,3.37053953,130.72,130.64,3.39181846]
[1769035673698,5.86889463,130.71,130.64,3.39181846]
[1769035674000,3.37046699,130.7,130.64,3.39181846]
[1769035674200,3.37046699,130.68,130.62,3.39181846]
[1769035675412,3.37046699,130.68,130.62,10.28771846]
[1769035676100,3.37046699,130.68,130.62,3.39181846]
[1769035676298,3.3616979,130.66,130.6,3.39181846]
[1769035677207,2.4983551,130.65,130.58,3.39181846]
[1769035677398,5.85574385,130.65,130.58,3.39181846]
[1769035677704,3.35738875,130.64,130.58,3.39181846]
[1769035677907,3.35738875,130.64,130.57,12.4304621]
[1769035679898,10.25248875,130.64,130.57,12.4304621]
[1769035680503,3.35738875,130.64,130.57,12.4304621]
[1769035681303,5.84519993,130.67,130.58,3.48986569]
[1769035681502,5.84519993,130.67,130.59,3.48986569]
[1769035681696,2.50385115,130.69,130.59,3.48986569]
[1769035681909,2.50385115,130.71,130.64,3.48986569]
[1769035683008,2.50385115,130.71,130.65,3.48986569]
[1769035692024,3.33736955,130.72,130.65,3.48986569]
[1769035694625,3.33736955,130.72,130.66,3.48986569]
[1769035695419,3.33736955,130.72,130.66,10.38376569]
[1769035695820,9.39375115,130.74,130.67,3.48986569]
[1769035696027,2.50385115,130.74,130.68,3.48986569]
[1769035696326,5.79007962,130.74,130.68,3.48986569]
[1769035698125,3.27957465,130.73,130.68,3.48986569]
[1769035699525,3.27957465,130.73,130.66,3.48986569]
[1769035701128,3.27957465,130.73,130.66,10.38366569]
[1769035702631,3.27957465,130.73,130.67,3.48986569]
[1769035709518,3.24560395,130.71,130.65,10.38426569]
[1769035709726,3.24560395,130.71,130.65,3.48986569]
[1769035710524,10.13690395,130.71,130.65,3.48986569]
[1769035716434,6.8918,130.7,130.65,3.48986569]
[1769035722539,10.09540929,130.7,130.65,3.48986569]
[1769035729247,10.07835303,130.71,130.65,3.48986569]
[1769035734847,3.17388949,130.7,130.65,3.48986569]
[1769035740751,10.06588949,130.7,130.65,3.48986569]
[1769035741152,3.15912293,130.69,130.62,3.42483284]
[1769035742350,3.15720193,130.73,130.65,3.42483284]
[1769035742751,3.15720193,130.75,130.66,3.42483284]
[1769035742951,3.15720193,130.75,130.69,3.42483284]
[1769035743553,3.15720193,130.75,130.7,3.42483284]
[1769035744150,3.15720193,130.75,130.7,10.31653284]
[1769035744354,3.15720193,130.75,130.66,3.42483284]
[1769035744355,3.15342587,130.75,130.66,3.42483284]
[1769035745258,3.15342587,130.75,130.67,3.42483284]
[1769035745758,2.499569,130.74,130.67,3.42483284]
[1769035746960,5.64749188,130.74,130.68,3.42483284]
[1769035747959,12.53729188,130.74,130.68,3.42483284]
[1769035752360,3.13916462,130.73,130.67,6.8933]
[1769035753563,3.13916462,130.73,130.67,10.31813284]
[1769035762173,9.389369,130.74,130.68,3.42483284]
[1769035762563,12.51246421,130.74,130.68,3.42483284]
[1769035763868,3.12009815,130.73,130.67,6.8933]
[1769035764075,3.12009815,130.73,130.65,3.42483284]
[1769035764970,3.12009815,130.73,130.67,10.31823284]
[1769035765474,3.12009815,130.73,130.68,3.42483284]
[1769035782989,3.12009815,130.73,130.68,10.31763284]
[1769035783384,3.12009815,130.73,130.67,10.18063308]
[1769035788294,6.8919,130.7,130.61,17.52497338]
[1769035788485,6.8919,130.7,130.62,3.28733308]
[1769035788894,292.19607786,130.74,130.64,3.28733308]
[1769035789091,294.69564686,130.74,130.64,3.28733308]
[1769035789293,294.69564686,130.74,130.65,3.28733308]
[1769035789494,294.69564686,130.74,130.64,107.2526]
[1769035789495,294.69564686,130.74,130.67,10.18053308]
[1769035794709,294.69564686,130.74,130.68,6.8928]
[1769035799914,301.58534686,130.74,130.68,6.8928]
[1769035800212,301.58534686,130.74,130.67,3.28733308]
[1769035802219,6.8902,130.73,130.67,3.28733308]
[1769035810724,301.58634836,130.74,130.67,10.18073308]
[1769035815420,6.8902,130.73,130.67,3.28733308]
[1769035815622,2.5004705,130.72,130.63,3.43887467]
[1769035816519,2.5004705,130.7,130.64,10.33337467]
[1769035817025,9.3922705,130.7,130.64,3.43887467]
[1769035817420,2.5004705,130.7,130.58,121.5392403]
[1769035817623,9.3933705,130.68,130.6,10.33557467]
[1769035817823,9.3933705,130.68,130.61,3.43887467]
[1769035819318,2.5004705,130.68,130.61,10.33527467]
[1769035825728,2.5004705,130.68,130.62,3.43887467]
[1769035825935,9.3928705,130.69,130.62,10.33477467]
[1769035828931,2.5004705,130.69,130.63,10.33437467]
[1769035829138,2.5004705,130.69,130.63,3.43887467]
[1769035830627,2.5004705,130.69,130.6,6.8966]
[1769035830830,2.5004705,130.69,130.6,10.33547467]
[1769035831031,2.5004705,130.69,130.61,3.43887467]
[1769035831634,9.3927705,130.69,130.62,3.12180222]
[1769035838048,2.5004705,130.7,130.64,3.12180222]
[1769035839951,2.5004705,130.7,130.64,10.01670222]
[1769035840551,2.5004705,130.7,130.65,3.12180222]
[1769035844857,2.5004705,130.7,130.65,10.01600222]
[1769035845051,9.3912705,130.72,130.65,10.01600222]
[1769035847357,6.8913,130.71,130.65,10.01600222]
[1769035849251,6.8913,130.71,130.65,3.12180222]
[1769035851263,2.5004705,130.72,130.65,3.12180222]
[1769035851264,6.8918,130.7,130.65,3.12180222]
[1769035852860,2.5004705,130.72,130.65,3.12180222]
[1769035852861,6.8913,130.71,130.65,3.12180222]
[1769035853062,2.5004705,130.72,130.65,3.12180222]
[1769035854063,6.8918,130.7,130.65,3.12180222]
[1769035862868,6.8913,130.71,130.65,3.12180222]
[1769035863068,9.39281052,130.71,130.65,3.12180222]
[1769035864772,2.50151052,130.71,130.65,3.12180222]
[1769035865869,9.39281052,130.71,130.65,3.12180222]
[1769035880380,6.892,130.7,130.65,3.12180222]
[1769035904103,9.39281052,130.71,130.65,3.12180222]
[1769035905404,6.8919,130.7,130.65,3.12180222]
[1769035922925,2.50151052,130.71,130.61,3.3409612]
[1769035923121,2.50151052,130.69,130.61,3.3409612]
[1769035924027,6.8929,130.68,130.62,3.3409612]
[1769035927623,2.50229154,130.7,130.63,3.3409612]
[1769035928016,2.50229154,130.71,130.63,3.3409612]
[1769035928327,2.50229154,130.71,130.64,10.2358612]
[1769035929928,6.8918,130.7,130.64,10.2358612]
[1769035930222,6.8918,130.7,130.64,3.3409612]
[1769035938933,9.39359154,130.71,130.65,3.3409612]
[1769035942241,2.50229154,130.71,130.65,3.3409612]
[1769035942537,2.50229154,130.75,130.66,3.3409612]
[1769035943942,9.39169154,130.75,130.68,3.3409612]
[1769035946245,9.39169154,130.75,130.69,3.3409612]
[1769035948346,2.50229154,130.73,130.67,6.8933]
[1769035948748,2.50229154,130.73,130.67,10.2342612]
[1769035951649,2.50229154,130.73,130.67,3.3409612]
[1769035952742,9.39259154,130.73,130.67,3.3409612]
[1769035960666,408.79168659,130.77,130.65,3.26976475]
[1769035960859,2.50229154,130.72,130.65,3.26976475]
[1769035961060,107.1587,130.76,130.61,3.26976475]
[1769035961061,2.50229154,130.7,130.61,3.26976475]
[1769035961659,2.50229154,130.72,130.65,3.26976475]
[1769035962961,2.50229154,130.72,130.66,10.16366475]
[1769035964169,6.8902,130.73,130.66,10.16366475]
[1769035973572,6.8902,130.73,130.67,3.26976475]
[1769036005208,2.50047312,130.75,130.67,3.26976475]
[1769036005411,6.8897,130.74,130.68,3.40747876]
[1769036008313,9.38967312,130.75,130.68,3.40747876]
[1769036009216,9.38967312,130.75,130.69,3.40747876]
[1769036015321,2.50047312,130.75,130.69,3.40747876]
[1769036018217,2.50047312,130.75,130.69,10.29967876]
[1769036018416,2.50047312,130.75,130.69,3.40747876]
[1769036023128,2.50047312,130.75,130.69,10.29977876]
[1769036025317,2.50047312,130.75,130.69,3.40747876]
[1769036026231,9.38967312,130.75,130.69,3.40747876]
[1769036028229,6.8898,130.74,130.69,3.40747876]
[1769036031734,2.50047312,130.75,130.69,3.40747876]
[1769036032030,6.8907,130.73,130.69,3.40747876]
[1769036032424,2.50047312,130.75,130.65,6.8944]
[1769036033934,6.8911,130.72,130.66,6.8939]
[1769036034127,6.8911,130.72,130.63,2.50047312]
[1769036034535,6.8911,130.72,130.64,3.41341014]
[1769036034927,6.8911,130.72,130.66,3.41341014]
[1769036036237,6.89,130.74,130.67,3.41341014]
[1769036043234,6.8903,130.73,130.67,3.41341014]
[1769036044938,6.8897,130.74,130.67,3.41341014]
[1769036046847,9.39013496,130.74,130.67,3.41341014]
[1769036061657,9.39013496,130.74,130.67,10.30661014]
[1769036062957,9.39013496,130.74,130.68,3.15478338]
[1769036067551,2.50043496,130.74,130.68,10.04748338]
[1769036067951,2.50043496,130.74,130.69,3.15478338]
[1769036069762,2.50043496,130.75,130.7,3.15478338]
[1769036078567,9.38973496,130.75,130.7,3.15478338]
[1769036087480,2.50043496,130.75,130.7,3.15478338]
[1769036090076,7.10923322,130.78,130.7,3.15478338]
[1769036090280,6.8871,130.79,130.73,3.18868463]
[1769036093175,2.50043496,130.8,130.73,3.18868463]
[1769036094981,9.38713496,130.8,130.73,3.18868463]
[1769036098082,2.50043496,130.8,130.73,3.18868463]
[1769036099478,2.50043496,130.8,130.74,3.18868463]
[1769036100985,2.50043496,130.8,130.75,3.35376232]
[1769036104088,9.38643496,130.82,130.75,3.35376232]
[1769036106893,9.3833254,130.82,130.75,3.35376232]
[1769036107192,2.4973254,130.82,130.75,10.24256232]
[1769036110384,2.4973254,130.82,130.76,3.16102598]
[1769036111892,2.4973254,130.84,130.76,3.16102598]
[1769036112099,297.27478719,130.85,130.76,5.65835138]
[1769036112300,297.27478719,130.85,130.77,3.16102598]
[1769036112499,297.27478719,130.85,130.8,10.04752598]
[1769036112793,2.4973254,130.86,130.8,3.16102598]
[1769036113003,2.4973254,130.88,130.81,6.8858]
[1769036113697,2.4973254,130.88,130.78,109.6353254]
[1769036113698,2.4973254,130.88,130.82,10.04642598]
[1769036113893,2.4973254,130.88,130.82,3.16102598]
[1769036115800,2.4973254,130.88,130.83,3.16102598]
[1769036116196,107.0159,130.94,130.83,3.16102598]
[1769036116397,2.4973254,130.89,130.83,3.16102598]
[1769036119199,2.4973254,130.89,130.8,3.16102598]
[1769036120502,9.3792254,130.89,130.81,10.04652598]
[1769036122196,9.3792254,130.89,130.81,3.16102598]
[1769036123598,6.8823,130.88,130.81,3.16102598]
[1769036129206,2.4973254,130.89,130.81,3.16102598]
[1769036132216,9.3791254,130.89,130.81,3.16102598]
[1769036132407,9.3791254,130.89,130.82,3.38819574]
[1769036144318,9.3791254,130.89,130.83,3.38819574]
[1769036144319,6.8818,130.89,130.83,3.38819574]
[1769036144909,107.0208,130.93,130.84,3.38819574]
[1769036144910,6.881,130.91,130.84,3.38819574]
[1769036146117,6.881,130.91,130.85,3.38819574]
[1769036146320,9.3772254,130.93,130.85,3.38819574]
[1769036148814,9.3772254,130.93,130.85,10.27209574]
[1769036150724,9.3772254,130.93,130.86,3.38819574]
[1769036152134,6.879,130.95,130.87,10.27099574]
[1769036152320,2.4973254,130.94,130.87,10.27099574]
[1769036153029,9.3765254,130.94,130.87,10.27099574]
[1769036154131,6.8799,130.93,130.87,3.38819574]
[1769036155931,6.8799,130.93,130.82,107.1053]
[1769036155932,2.4973254,130.92,130.82,3.38819574]
[1769036156834,6.8809,130.91,130.84,3.38819574]
[1769036157335,2.4973254,130.9,130.84,3.38819574]
[1769036158130,9.3786254,130.9,130.84,3.38819574]
[1769036168841,9.37540923,130.9,130.84,3.38819574]
[1769036170642,6.8813,130.9,130.84,3.38819574]
[1769036170843,9.37540923,130.9,130.84,3.38819574]
[1769036173539,6.8818,130.89,130.84,3.38819574]
[1769036175746,2.49410923,130.93,130.85,3.28403707]
[1769036176946,6.8809,130.91,130.85,3.28403707]
[1769036179446,2.49410923,130.89,130.83,3.28403707]
[1769036180947,9.37590923,130.89,130.83,3.28403707]
[1769036188364,2.49410923,130.89,130.83,3.28403707]
[1769036191160,2.49410923,130.89,130.83,10.16893707]
[1769036202071,9.37590923,130.89,130.83,3.28403707]
[1769036210877,6.8823,130.88,130.83,3.28403707]
[1769036212176,6.8829,130.87,130.83,3.28403707]
[1769036212382,2.49410923,130.85,130.76,3.22300051]
[1769036213366,6.8855,130.82,130.76,3.22300051]
[1769036219382,6.8845,130.84,130.76,3.22300051]
[1769036220386,2.49410923,130.83,130.76,3.22300051]
[1769036220685,9.37910923,130.83,130.76,3.22300051]
[1769036226988,2.49410923,130.81,130.76,3.22300051]
[1769036230983,2.49747265,130.81,130.76,3.22300051]
[1769036235490,2.49747265,130.81,130.74,3.33388781]
[1769036236894,2.49747265,130.81,130.74,10.22348781]
[1769036238591,2.49747265,130.81,130.75,3.33388781]
[1769036242294,9.38357265,130.81,130.75,3.33388781]
[1769036244208,6.8866,130.8,130.75,3.33388781]
[1769036245904,6.8866,130.8,130.73,3.33388781]
[1769036248191,2.49747265,130.77,130.71,3.33388781]
[1769036249402,6.8888,130.76,130.71,3.33388781]
[1769036250199,9.38557265,130.77,130.71,3.33388781]
[1769036252206,9.38557265,130.77,130.69,6.8923]
[1769036252207,2.49747265,130.77,130.69,3.20963388]
[1769036253904,6.8892,130.75,130.69,3.20963388]
[1769036257213,6.8898,130.74,130.69,3.20963388]
[1769036260815,6.8891,130.76,130.69,3.20963388]
[1769036267221,6.8891,130.76,130.7,3.20963388]
[1769036274422,9.38557265,130.77,130.71,3.20963388]
[1769036285239,6.8887,130.76,130.71,3.20963388]
[1769036291635,2.49918723,130.77,130.67,3.33234961]
[1769036291636,6.8897,130.74,130.67,3.33234961]
[1769036305651,6.8897,130.74,130.66,6.8939]
[1769036305652,9.38838723,130.75,130.68,3.33234961]
[1769036307048,9.38838723,130.75,130.68,10.22524961]
[1769036308553,2.49918723,130.75,130.69,3.33234961]
[1769036313270,2.49918723,130.75,130.69,10.22454961]
[1769036318070,6.8881,130.78,130.71,3.28894378]
[1769036318373,9.38728723,130.78,130.71,3.28894378]
[1769036319864,9.38728723,130.78,130.71,6.8913]
[1769036320069,9.38728723,130.78,130.72,3.28894378]
[1769036329475,6.8881,130.77,130.72,3.28894378]
[1769036330276,9.38728723,130.77,130.72,3.28894378]
[1769036331180,6.8876,130.78,130.72,3.28894378]
[1769036331376,9.38678723,130.78,130.72,3.28894378]
[1769036335279,6.8881,130.77,130.72,3.28894378]
[1769036337880,6.8887,130.76,130.72,3.28894378]
[1769036339274,2.49918723,130.78,130.72,3.28894378]
[1769036340277,9.38678723,130.78,130.7,3.30072612]
[1769036344178,2.49918723,130.78,130.7,3.30072612]
[1769036345380,2.49918723,130.78,130.65,3.09965039]
[1769036345381,2.49918723,130.74,130.65,3.09965039]
[1769036346286,9.38888723,130.74,130.65,9.99355039]
[1769036346481,9.38888723,130.74,130.66,3.09965039]
[1769036347278,2.49918723,130.72,130.66,3.09965039]
[1769036348983,2.49918723,130.72,130.67,3.09965039]
[1769036349291,2.49918723,130.74,130.67,3.09965039]
[1769036350888,9.38955958,130.75,130.68,3.09965039]
[1769036352383,2.50015958,130.75,130.68,9.99245039]
[1769036353691,2.50015958,130.75,130.69,3.09965039]
[1769036357191,9.38945958,130.75,130.69,3.09965039]
[1769036358797,6.8897,130.74,130.69,3.09965039]
[1769036361599,9.39035958,130.73,130.69,3.09965039]
[1769036362098,9.39035958,130.73,130.66,3.09965039]
[1769036362300,6.8908,130.72,130.66,3.09965039]
[1769036368199,109.66875958,130.75,130.66,3.09965039]
[1769036368402,2.50015958,130.73,130.66,3.09965039]
[1769036369099,6.8919,130.7,130.66,3.09965039]
[1769036370193,9.39085958,130.73,130.66,3.09965039]
[1769036370503,2.50015958,130.73,130.63,3.09965039]
[1769036372102,6.8908,130.72,130.63,3.09965039]
[1769036373207,6.8908,130.72,130.64,3.3617975]
[1769036376710,6.8908,130.72,130.65,3.3617975]
[1769036379314,9.39165958,130.71,130.64,6.895]
[1769036379915,2.50015958,130.69,130.64,6.895]
[1769036385427,2.50015958,130.69,130.64,10.2567975]
[1769036386822,2.50015958,130.69,130.64,6.895]
[1769036393432,2.50015958,130.69,130.63,10.2571975]
[1769036395527,2.50015958,130.69,130.64,3.3617975]
[1769036396630,2.50015958,130.69,130.63,6.8954]
[1769036396831,2.50015958,130.67,130.59,3.3617975]
[1769036397526,9.39395958,130.67,130.59,3.3617975]
[1769036399037,2.50015958,130.65,130.59,3.3617975]
[1769036400329,2.50015958,130.66,130.59,3.3617975]
[1769036400523,114.280573,130.71,130.6,3.37705103]
[1769036400729,2.50015958,130.66,130.6,3.37705103]
[1769036401233,2.50015958,130.62,130.58,3.42114031]
[1769036401439,2.50015958,130.6,130.57,9.03864364]
[1769036402440,2.50015958,130.61,130.57,9.03864364]
[1769036403350,107.2439,130.66,130.57,9.03864364]
[1769036403545,2.50015958,130.64,130.58,3.42114031]
[1769036404940,6.894,130.66,130.58,3.42114031]
[1769036404941,2.50015958,130.66,130.58,3.42114031]
[1769036405939,2.50015958,130.66,130.59,3.42114031]
[1769036410942,9.39677023,130.67,130.59,3.42114031]
[1769036411840,6.8941,130.66,130.59,3.42114031]
[1769036413251,2.50327023,130.67,130.59,3.42114031]
[1769036418248,2.50327023,130.67,130.6,3.42114031]
[1769036419153,2.50327023,130.67,130.61,3.42114031]
[1769036419752,9.39577023,130.69,130.61,3.42114031]
[1769036420453,9.39577023,130.69,130.62,3.42114031]
[1769036421353,2.50327023,130.71,130.63,3.42114031]
[1769036421551,2.50327023,130.73,130.63,3.42114031]
[1769036421751,2.50327023,130.73,130.64,3.42114031]
[1769036423044,2.50327023,130.73,130.66,10.31494031]
[1769036425762,2.50327023,130.73,130.67,6.8934]
[1769036425962,2.50327023,130.73,130.67,10.31454031]
[1769036426263,9.39367023,130.73,130.67,3.42114031]
[1769036432357,6.8908,130.72,130.67,3.42114031]
[1769036433368,6.8914,130.71,130.67,3.42114031]
[1769036433868,9.39467023,130.71,130.63,6.8951]
[1769036434067,6.8918,130.7,130.63,6.8951]
[1769036434267,6.8918,130.7,130.61,2.50327023]
[1769036435172,9.81078706,130.7,130.62,6.896]
[1769036435468,2.91898706,130.69,130.62,6.896]
[1769036435966,2.91898706,130.69,130.63,3.12247365]
[1769036436871,6.8918,130.7,130.63,3.12247365]
[1769036437770,9.81078706,130.7,130.63,3.12247365]
[1769036439271,2.91898706,130.7,130.64,3.12247365]
[1769036441673,2.91898706,130.7,130.64,3.12247365]
[1769036444172,5.42225729,130.7,130.64,3.12247365]
[1769036447573,2.91898706,130.69,130.64,3.12247365]
[1769036448283,2.91898706,130.67,130.62,6.896]
[1769036448479,2.91898706,130.67,130.62,3.12247365]
[1769036455182,2.50327023,130.68,130.62,3.12247365]
[1769036455386,12.31465729,130.69,130.63,3.12247365]
[1769036460390,2.91898706,130.69,130.64,3.37944815]
[1769036461084,2.91898706,130.69,130.6,3.37985732]
[1769036461085,2.918283,130.68,130.6,3.37985732]
[1769036461885,2.918283,130.68,130.62,10.27585732]
[1769036462188,2.918283,130.68,130.62,3.37985732]
[1769036462687,2.918283,130.66,130.58,3.37985732]
[1769036463394,2.918283,130.66,130.6,3.37985732]
[1769036466194,9.812183,130.66,130.6,3.37985732]
[1769036468097,2.918283,130.64,130.58,3.37985732]
[1769036472102,2.50327023,130.61,130.57,9.03864364]
[1769036472304,2.918283,130.6,130.57,9.03864364]
[1769036472507,2.918283,130.6,130.57,8.0719957]
[1769036472707,5.42155323,130.6,130.57,8.0719957]
[1769036472902,2.918283,130.6,130.57,8.0719957]
[1769036475310,9.815483,130.6,130.57,8.0719957]
[1769036475514,12.32068699,130.6,130.57,8.0719957]
[1769036477013,6.8972,130.6,130.57,8.0719957]
[1769036478217,2.918283,130.6,130.57,9.57e-05]
[1769036480120,9.815383,130.6,130.57,9.57e-05]
[1769036483518,2.918283,130.59,130.57,9.57e-05]
[1769036484323,6.8971,130.6,130.57,9.57e-05]
[1769036487024,2.918283,130.61,130.57,9.57e-05]
[1769036493832,2.92284373,130.63,130.57,3.31060437]
[1769036494233,2.92284373,130.63,130.58,10.20860867]
[1769036494531,5.42804772,130.64,130.59,3.31050867]
[1769036500530,5.42804772,130.64,130.59,10.20810867]
[1769036501134,5.42804772,130.64,130.59,3.31050867]
[1769036501927,5.42804772,130.66,130.6,10.20710867]
[1769036502332,5.42804772,130.66,130.6,3.31050867]